bitfinex-derivatives/quotes_BTCF0:USTF0_20241231
["timestamp","ask_amount","ask_price","bid_price","bid_amount"]
[1735663761753,0.0945802,94998.0,94997.0,1.553728]
[1735663776567,2e-07,94998.0,94997.0,1.553728]
[1735663776868,2e-07,95000.0,94999.0,0.052727]
[1735663777676,2e-07,95000.0,94999.0,1.552727]
[1735663778061,2e-07,95000.0,94999.0,1.553727]
[1735663778870,0.1,95018.0,95017.0,0.052717]
[1735663779073,0.1,95018.0,95017.0,0.413517]
[1735663779476,0.152716,95018.0,95017.0,0.052717]
[1735663780277,0.1,95018.0,95017.0,0.052717]
[1735663780670,0.1171241,95018.0,95017.0,0.052717]
[1735663781775,0.1171241,95018.0,95017.0,0.053717]
[1735663788779,0.1,95018.0,95017.0,0.053717]
[1735663789475,0.1200252,95018.0,95017.0,0.053717]
[1735663789674,0.1727412,95018.0,94991.0,0.052731]
[1735663789874,0.3608,94999.0,94998.0,0.052727]
[1735663790072,0.052727,94998.0,94971.0,0.4725]
[1735663790273,0.225,94998.0,94971.0,0.3608]
[1735663790480,0.3608,94975.0,94970.0,0.18901362]
[1735663790778,0.052742,94971.0,94970.0,0.18901362]
[1735663790978,0.052742,94971.0,94969.0,0.052743]
[1735663791485,0.052743,94970.0,94969.0,0.052743]
[1735663792277,0.225,94974.0,94972.0,0.052741]
[1735663793078,0.24727674,94974.0,94972.0,0.052741]
[1735663793281,0.24727674,94974.0,94972.0,0.054741]
[1735663793482,0.225,94974.0,94973.0,0.052741]
[1735663794285,0.225,94974.0,94973.0,1.552741]
[1735663794583,0.225,94974.0,94973.0,0.052741]
[1735663795188,0.225,94974.0,94973.0,1.555741]
[1735663795587,0.112,94974.0,94973.0,1.555741]
[1735663795989,0.112,94974.0,94973.0,1.557741]
[1735663797581,0.16593,94993.0,94992.0,0.05273]
[1735663798777,0.1857911,94993.0,94992.0,0.05273]
[1735663798985,0.2956911,94993.0,94992.0,0.05273]
[1735663799189,0.2976911,94993.0,94992.0,0.05273]
[1735663799985,0.052731,94992.0,94987.0,0.052733]
[1735663800590,0.052732,94990.0,94987.0,0.052733]
[1735663801188,0.2509611,94993.0,94960.0,0.01945753]
[1735663801382,0.052739,94977.0,94959.0,0.413548]
[1735663801577,0.052739,94977.0,94968.0,0.052744]
[1735663801795,0.052739,94977.0,94960.0,1.5]
[1735663802383,0.052739,94977.0,94960.0,1.57001484]
[1735663802591,0.07001484,94980.0,94967.0,0.3668]
[1735663802887,0.052738,94980.0,94978.0,0.052738]
[1735663804078,0.052738,94979.0,94978.0,0.052738]
[1735663804688,0.33424839,94984.0,94978.0,0.052738]
[1735663804890,0.052738,94979.0,94978.0,0.052738]
[1735663805485,0.052738,94979.0,94978.0,0.053738]
[1735663805686,0.052738,94979.0,94978.0,0.054738]
[1735663806093,0.40634296,94984.0,94978.0,0.002]
[1735663806590,0.052736,94983.0,94982.0,0.052736]
[1735663806787,0.35360796,94984.0,94978.0,0.002]
[1735663807079,0.052737,94980.0,94979.0,0.052738]
[1735663809295,0.052737,94980.0,94979.0,0.053738]
[1735663810291,0.052737,94980.0,94979.0,0.001]
[1735663814191,0.052737,94980.0,94979.0,0.053737]
[1735663817193,0.3608,95003.0,94979.0,0.001]
[1735663817399,0.01945037,94996.0,94987.0,0.3608]
[1735663817585,0.0543066,94999.0,94987.0,0.3608]
[1735663817901,0.052727,94999.0,94988.0,0.1094]
[1735663818095,0.052728,94998.0,94995.0,0.052729]
[1735663818297,0.052728,94998.0,94997.0,0.052728]
[1735663818686,0.01939551,94999.0,94988.0,0.1094]
[1735663818894,0.43161485,95005.0,94988.0,0.1094]
[1735663818895,0.07001484,95000.0,94988.0,0.1094]
[1735663819094,0.07001484,95000.0,94999.0,0.052727]
[1735663819302,0.052725,95003.0,94990.0,0.052732]
[1735663819500,0.003,94998.0,94990.0,0.052732]
[1735663819703,0.003,94998.0,94997.0,0.052728]
[1735663820094,0.003,94998.0,94997.0,0.413528]
[1735663821105,0.008,94998.0,94997.0,0.414528]
[1735663821998,0.011,94998.0,94997.0,0.414528]
[1735663822999,0.011,94998.0,94997.0,0.001]
[1735663823207,0.063727,94998.0,94997.0,0.001]
[1735663825092,0.011,94998.0,94997.0,0.053728]
[1735663826606,0.09709115,95004.0,95003.0,0.052724]
[1735663826914,0.3431037,95010.0,95003.0,0.413524]
[1735663827103,0.3431037,95010.0,95009.0,0.052721]
[1735663827405,0.07094543,95021.0,95003.0,0.3608]
[1735663827637,0.07094543,95021.0,95016.0,0.052717]
[1735663827796,0.07094543,95021.0,95020.0,0.052715]
[1735663828001,0.0193173,95031.0,95030.0,0.052709]
[1735663828197,0.0193173,95031.0,95030.0,0.413509]
[1735663828605,0.10157867,95037.0,95035.0,0.052706]
[1735663829707,0.001,95037.0,95035.0,0.053706]
[1735663830802,0.001,95037.0,95036.0,0.052706]
[1735663832506,0.3608,95050.0,95031.0,0.1036]
[1735663832700,0.3608,95050.0,95043.0,0.052702]
[1735663832902,0.38003593,95050.0,95044.0,0.052701]
[1735663833107,0.38003593,95050.0,95045.0,0.052701]
[1735663833610,0.43273493,95050.0,95045.0,0.052701]
[1735663833907,0.052699,95049.0,95045.0,0.052701]
[1735663834137,0.38003593,95050.0,95031.0,0.1126]
[1735663834138,0.38087593,95050.0,95031.0,0.1126]
[1735663834312,0.052704,95040.0,95033.0,0.052708]
[1735663834505,0.052704,95040.0,95034.0,0.052707]
[1735663834704,0.052704,95040.0,95031.0,0.1126]
[1735663834905,0.38083594,95050.0,95031.0,0.1126]
[1735663834906,0.43081484,95041.0,95031.0,0.1216]
[1735663835211,0.052707,95035.0,95031.0,0.174309]
[1735663835515,0.052704,95040.0,95031.0,0.1216]
[1735663835711,0.053704,95040.0,95035.0,0.052706]
[1735663836013,0.053704,95040.0,95031.0,0.1036]
[1735663836215,0.053704,95040.0,95037.0,0.052705]
[1735663836512,0.052704,95040.0,95037.0,0.052705]
[1735663836708,0.052701,95046.0,95031.0,0.1046]
[1735663836915,0.0527,95048.0,95042.0,0.052702]
[1735663837098,0.0527,95047.0,95042.0,0.052702]
[1735663837498,0.0527,95047.0,95043.0,0.052702]
[1735663838211,0.052702,95043.0,95037.0,0.052705]
[1735663838407,0.052702,95043.0,95038.0,0.052705]
[1735663838711,0.0527,95048.0,95042.0,0.052703]
[1735663838903,0.0527,95047.0,95042.0,0.052703]
[1735663839103,0.0537,95047.0,95043.0,0.001]
[1735663839307,0.001,95047.0,95043.0,0.002]
[1735663839508,0.001,95047.0,95046.0,0.052701]
[1735663839816,0.001,95048.0,95046.0,0.052701]
[1735663841405,0.0537,95047.0,95046.0,0.001]
[1735663842110,0.0527,95047.0,95046.0,0.001]
[1735663842316,0.0527,95047.0,95046.0,0.002]
[1735663842812,0.001,95048.0,95047.0,0.0527]
[1735663843011,0.38091594,95050.0,95049.0,0.052699]
[1735663843230,0.38003593,95050.0,95049.0,0.052699]
[1735663843710,0.38003593,95050.0,95046.0,0.002]
[1735663844102,0.052699,95048.0,95046.0,0.002]
[1735663844310,0.0527,95047.0,95046.0,0.002]
[1735663844519,0.0527,95047.0,95032.0,0.3608]
[1735663844715,0.052706,95037.0,95032.0,0.413508]
[1735663845517,0.052707,95035.0,95032.0,0.413508]
[1735663845711,0.052707,95034.0,95032.0,0.413508]
[1735663846818,0.052707,95034.0,95032.0,0.414508]
[1735663847202,0.053706,95037.0,95033.0,0.052708]
[1735663848410,0.003,95034.0,95033.0,0.052708]
[1735663848604,0.052708,95033.0,95032.0,0.3618]
[1735663849119,0.052708,95033.0,95032.0,0.3608]
[1735663851214,0.052709,95032.0,95028.0,0.07256365]
[1735663851414,0.052709,95032.0,95028.0,0.052711]
[1735663851720,0.052709,95032.0,95029.0,0.05271]
[1735663851916,0.052709,95032.0,95021.0,0.5787]
[1735663852117,0.052709,95032.0,95030.0,0.05271]
[1735663852524,0.054709,95032.0,95030.0,0.05271]
[1735663852913,0.052709,95031.0,95030.0,0.05271]
[1735663853111,0.052713,95026.0,95025.0,0.052712]
[1735663853519,0.052709,95031.0,95030.0,0.052709]
[1735663853722,0.001,95032.0,95031.0,0.052709]
[1735663853723,0.002,95032.0,95031.0,0.052709]
[1735663855725,0.01763917,95037.0,95036.0,0.052706]
[1735663855922,0.052705,95038.0,95029.0,0.3608]
[1735663856221,0.052705,95038.0,95037.0,0.052706]
[1735663856819,0.3608,95042.0,95040.0,0.052704]
[1735663857119,0.052704,95041.0,95040.0,0.052704]
[1735663857827,0.37813235,95042.0,95041.0,0.052704]
[1735663858725,0.11438815,95042.0,95041.0,0.052704]
[1735663858916,0.11538815,95042.0,95041.0,0.052704]
[1735663859116,0.11638815,95042.0,95041.0,0.053704]
[1735663859719,0.01933235,95042.0,95041.0,0.054704]
[1735663860925,0.07203535,95042.0,95041.0,0.002]
[1735663862124,0.07203535,95042.0,95041.0,0.001]
[1735663862326,0.07203535,95042.0,95028.0,0.01647017]
[1735663862327,0.05271,95030.0,95028.0,0.01647017]
[1735663863038,0.2137,95036.0,95028.0,0.01647017]
[1735663863039,0.05271,95029.0,95028.0,0.01647017]
[1735663863229,0.052712,95026.0,95023.0,0.052713]
[1735663865228,0.09282292,95025.0,95023.0,0.052713]
[1735663865634,0.09282292,95025.0,95024.0,0.052713]
[1735663866340,0.09382292,95025.0,95024.0,0.052713]
[1735663866920,0.002,95025.0,95024.0,0.052713]
[1735663868328,0.001,95025.0,95024.0,0.052713]
[1735663868539,0.09518846,95029.0,95028.0,0.052711]
[1735663868836,0.02201138,95030.0,95029.0,0.05271]
[1735663869031,0.28269952,95035.0,95029.0,0.05271]
[1735663869235,0.28269952,95035.0,95033.0,0.413508]
[1735663870334,0.052706,95037.0,95033.0,0.3608]
[1735663870530,0.052706,95037.0,95036.0,0.052706]
[1735663870938,0.01636265,95041.0,95033.0,0.3608]
[1735663871131,0.163403,95042.0,95033.0,0.3608]
[1735663871333,0.163403,95042.0,95041.0,0.052704]
[1735663871945,0.0527,95047.0,95046.0,0.0527]
[1735663872356,0.16684774,95051.0,95049.0,0.052699]
[1735663872540,0.0969,95051.0,95049.0,0.052699]
[1735663872751,0.0969,95051.0,95050.0,0.052699]
[1735663873838,0.0969,95051.0,95036.0,0.052706]
[1735663874041,0.0969,95051.0,95034.0,0.052707]
[1735663874042,0.06994774,95046.0,95034.0,0.052707]
[1735663874238,0.06994774,95046.0,95045.0,0.052701]
[1735663874448,0.052699,95050.0,95047.0,0.0527]
[1735663876055,0.052705,95039.0,95035.0,0.052707]
[1735663876255,0.06994774,95045.0,95033.0,0.3608]
[1735663876454,0.06994774,95050.0,95033.0,0.3608]
[1735663876754,0.06994774,95050.0,95049.0,0.052699]
[1735663876951,0.4577,95051.0,95033.0,0.3608]
[1735663877250,0.11667786,95051.0,95033.0,0.3608]
[1735663877449,0.06994774,95050.0,95033.0,0.3608]
[1735663877652,0.06994774,95050.0,95044.0,0.3608]
[1735663877857,0.27419516,95050.0,95044.0,0.3608]
[1735663878752,0.0954278,95049.0,95044.0,0.3608]
[1735663878953,0.0954278,95049.0,95047.0,0.0527]
[1735663880354,0.0954278,95050.0,95047.0,0.0527]
[1735663880854,0.0954278,95050.0,95048.0,0.0527]
[1735663881353,0.149598,95051.0,95048.0,0.0527]
[1735663882445,0.24488839,95051.0,95048.0,0.0527]
[1735663883350,0.19219039,95051.0,95033.0,0.3608]
[1735663883555,0.052706,95038.0,95035.0,0.052707]
[1735663883751,0.052703,95042.0,95037.0,0.052706]
[1735663884057,0.06994774,95043.0,95037.0,0.052706]
[1735663884247,0.052704,95040.0,95037.0,0.052706]
[1735663885545,0.09529039,95039.0,95037.0,0.052706]
[1735663887149,0.09529039,95039.0,95038.0,0.052705]
[1735663888651,0.34634558,95045.0,95044.0,0.052702]
[1735663889450,0.09529039,95049.0,95048.0,0.0527]
[1735663890461,0.09529039,95055.0,95048.0,0.0527]
[1735663890756,0.09529039,95055.0,95054.0,0.052696]
[1735663890955,0.09529039,95055.0,95043.0,0.052702]
[1735663890956,0.052701,95047.0,95043.0,0.052702]
[1735663891149,0.052698,95051.0,95032.0,0.052708]
[1735663891351,0.052698,95051.0,95049.0,0.052699]
[1735663891751,0.1025,95054.0,95052.0,0.052697]
[1735663892456,0.155196,95054.0,95052.0,0.052697]
[1735663893051,0.052696,95054.0,95052.0,0.053697]
[1735663893648,0.09511821,95053.0,95052.0,0.053697]
[1735663895146,0.11132517,95055.0,95054.0,0.052696]
[1735663895350,0.09511821,95055.0,95054.0,0.052696]
[1735663896546,0.09511821,95055.0,95054.0,0.053696]
[1735663897754,0.1,95056.0,95054.0,0.053696]
[1735663897953,0.1,95056.0,95055.0,0.052696]
[1735663899147,0.19511821,95056.0,95055.0,0.052696]
[1735663899366,0.19511821,95056.0,95055.0,0.053696]
[1735663899570,0.19511821,95056.0,95055.0,0.001]
[1735663899571,0.60861321,95056.0,95055.0,0.001]
[1735663899864,0.052701,95046.0,95040.0,0.413504]
[1735663900061,0.052701,95047.0,95027.0,0.0948]
[1735663900253,0.0699202,95037.0,95022.0,0.3608]
[1735663900452,0.05271,95031.0,95025.0,0.052712]
[1735663900653,0.052711,95029.0,95025.0,0.052712]
[1735663900859,0.052711,95028.0,95025.0,0.052712]
[1735663901568,0.052711,95028.0,95026.0,0.052711]
[1735663901865,0.14782921,95028.0,95026.0,0.052711]
[1735663902366,0.14782921,95028.0,95027.0,0.052711]
[1735663902565,0.14882921,95028.0,95027.0,0.052711]
[1735663902767,0.053711,95028.0,95027.0,0.052711]
[1735663903561,0.052714,95023.0,95022.0,0.42949546]
[1735663904564,0.14885121,95028.0,95027.0,0.052711]
[1735663904960,0.14785121,95028.0,95027.0,0.052711]
[1735663905153,0.09514021,95028.0,95027.0,0.052711]
[1735663905865,0.2492737,95033.0,95027.0,0.052711]
[1735663906056,0.2492737,95033.0,95032.0,0.052709]
[1735663906457,0.2492737,95033.0,95032.0,1.552709]
[1735663906863,0.06759115,95046.0,95045.0,0.052701]
[1735663907170,0.08673253,95046.0,95045.0,0.052701]
[1735663908063,0.06759115,95046.0,95045.0,0.052701]
[1735663908959,0.052703,95042.0,95041.0,0.052703]
[1735663909154,0.052707,95037.0,95032.0,1.5]
[1735663909359,0.01489015,95046.0,95024.0,0.052713]
[1735663909360,0.052709,95032.0,95024.0,0.052713]
[1735663909560,0.052709,95032.0,95031.0,0.052709]
[1735663911361,0.0933,95036.0,95035.0,0.052707]
[1735663911582,0.146006,95036.0,95035.0,0.052707]
[1735663914367,0.0933,95036.0,95035.0,0.052707]
[1735663914572,0.09230665,95036.0,95035.0,0.052707]
[1735663915663,0.20061855,95042.0,95041.0,0.052704]
[1735663916770,0.09230665,95045.0,95044.0,0.052702]
[1735663920178,0.06759115,95046.0,95045.0,0.052702]
[1735663921070,0.15990319,95046.0,95045.0,0.052702]
[1735663921669,0.15990319,95046.0,95035.0,0.052707]
[1735663921670,0.052705,95039.0,95035.0,0.052707]
[1735663921876,0.4606,95038.0,95036.0,0.052706]
[1735663922171,0.513306,95038.0,95036.0,0.052706]
[1735663922671,0.513306,95038.0,95037.0,0.052706]
[1735663923768,0.052707,95036.0,95028.0,0.0699202]
[1735663924169,0.052707,95036.0,95034.0,0.052707]
[1735663924475,0.05271,95030.0,95029.0,0.05271]
[1735663925678,0.05271,95030.0,95029.0,0.05371]
[1735663927578,0.41351,95030.0,95029.0,0.001]
[1735663927877,0.052718,95016.0,95015.0,0.00157854]
[1735663929076,0.14507824,95016.0,95015.0,0.00657854]
[1735663929779,0.14507824,95016.0,95015.0,0.01057854]
[1735663929983,0.052718,95016.0,95015.0,0.01057854]
[1735663930779,0.052718,95016.0,95015.0,0.44015098]
[1735663930980,0.052718,95016.0,95015.0,0.421518]
[1735663931479,0.25121584,95018.0,95017.0,0.052717]
[1735663932183,0.0941,95029.0,95028.0,0.052711]
[1735663933081,0.0941,95029.0,95028.0,1.552711]
[1735663933377,0.46889549,95029.0,95028.0,1.552711]
[1735663933580,0.46889549,95029.0,95028.0,0.052711]
[1735663935275,0.46889549,95029.0,95005.0,0.3608]
[1735663935585,0.052718,95017.0,95013.0,0.05272]
[1735663935787,0.0699202,95025.0,95014.0,0.052719]
[1735663936086,0.052718,95016.0,95014.0,0.052719]
[1735663936486,0.052718,95016.0,95015.0,0.43290693]
[1735663936685,0.0699202,95025.0,95015.0,0.38318793]
[1735663936886,0.052716,95020.0,95016.0,0.052718]
[1735663937089,0.0991,95019.0,95016.0,0.052718]
[1735663937289,0.151817,95019.0,95016.0,0.052718]
[1735663937688,0.052718,95017.0,95016.0,0.052718]
[1735663938189,0.052718,95017.0,95016.0,0.056718]
[1735663938982,0.14525664,95017.0,95016.0,0.056718]
[1735663939389,0.14525664,95017.0,95016.0,0.007]
[1735663939685,0.55183864,95017.0,95005.0,0.3608]
[1735663939887,0.55183864,95017.0,95012.0,0.05272]
[1735663940086,0.60455664,95017.0,95012.0,0.05272]
[1735663940483,0.45333864,95017.0,95016.0,0.056718]
[1735663940886,0.3608,95017.0,95016.0,0.004]
[1735663941080,0.413518,95017.0,95016.0,0.004]
[1735663941988,0.052721,95012.0,95006.0,0.052723]
[1735663942200,0.0699202,95016.0,95007.0,0.052723]
[1735663942383,0.052722,95010.0,95005.0,0.38120996]
[1735663942583,0.052722,95010.0,95008.0,0.052723]
[1735663942784,0.052722,95010.0,95009.0,0.052722]
[1735663943093,0.0699202,95016.0,95011.0,0.052721]
[1735663943291,0.052719,95015.0,95011.0,0.052721]
[1735663943489,0.05272,95014.0,95011.0,0.052721]
[1735663944787,0.38362031,95017.0,95005.0,0.3608]
[1735663944991,0.0699202,95015.0,95005.0,0.3608]
[1735663945192,0.052721,95011.0,95007.0,0.052723]
[1735663945394,0.052723,95009.0,95007.0,0.052723]
[1735663945691,0.0976,95010.0,95005.0,0.3608]
[1735663945897,0.052724,95006.0,95005.0,0.3608]
[1735663946094,0.3608,95009.0,94985.0,0.052735]
[1735663946299,0.0699202,95001.0,94999.0,0.052728]
[1735663946594,0.052727,95000.0,94999.0,0.052728]
[1735663947092,0.5251202,95009.0,94994.0,0.3608]
[1735663947297,0.052725,95005.0,95003.0,0.052725]
[1735663947495,0.5259602,95009.0,95003.0,0.052725]
[1735663947693,0.052725,95004.0,95003.0,0.052725]
[1735663948794,0.37889107,95009.0,95003.0,0.052725]
[1735663948995,0.37809106,95009.0,95003.0,0.052725]
[1735663949195,0.37809106,95009.0,95005.0,0.001]
[1735663949196,0.25112759,95008.0,95005.0,0.001]
[1735663949398,0.052724,95006.0,95005.0,0.001]
[1735663949996,0.052725,95005.0,95003.0,0.053725]
[1735663950303,0.052725,95005.0,95004.0,0.052725]
[1735663950800,0.052727,95001.0,94999.0,0.052727]
[1735663951099,0.14527347,95006.0,94994.0,0.3608]
[1735663951305,0.14527347,95006.0,95005.0,0.052724]
[1735663951596,0.09822759,95008.0,95007.0,0.052723]
[1735663951797,0.18371273,95028.0,95024.0,0.052714]
[1735663952006,0.18371273,95028.0,95024.0,2.274314]
[1735663952507,0.18371273,95028.0,95024.0,0.774314]
[1735663952703,0.052708,95035.0,95024.0,0.7216]
[1735663952891,0.0719119,95035.0,95034.0,0.413508]
[1735663953505,0.0192039,95035.0,95034.0,0.413508]
[1735663953804,0.1004,95036.0,95035.0,0.052708]
[1735663954006,0.1004,95036.0,95034.0,0.3608]
[1735663954193,0.004,95035.0,95031.0,0.05271]
[1735663954399,0.03063607,95036.0,95024.0,0.3618]
[1735663954603,0.052713,95025.0,95024.0,0.3618]
[1735663954808,0.052713,95025.0,95024.0,0.3608]
[1735663955407,0.0699202,95034.0,95024.0,0.3608]
[1735663955605,0.052709,95033.0,95025.0,0.052713]
[1735663955808,0.052712,95027.0,95025.0,0.052713]
[1735663957498,0.052712,95027.0,95026.0,0.052713]
[1735663958502,0.054712,95027.0,95026.0,0.052713]
[1735663959616,0.052713,95025.0,95022.0,0.413515]
[1735663959806,0.052714,95023.0,95022.0,0.413515]
[1735663960197,0.1018,95026.0,95024.0,0.052714]
[1735663960610,0.154513,95026.0,95024.0,0.052714]
[1735663961109,0.052713,95025.0,95024.0,0.052714]
[1735663961508,0.052714,95023.0,95011.0,0.052721]
[1735663961810,0.052718,95017.0,95016.0,0.052718]
[1735663962106,0.1018,95026.0,95010.0,0.3608]
[1735663962107,0.1717202,95026.0,95010.0,0.3608]
[1735663962307,0.0699202,95020.0,95010.0,0.3608]
[1735663962510,0.052717,95019.0,95016.0,0.052718]
[1735663963111,0.052717,95019.0,95017.0,0.052717]
[1735663963296,0.052717,95019.0,95018.0,0.052717]
[1735663964503,0.054717,95019.0,95018.0,0.052717]
[1735663965509,0.052718,95017.0,95015.0,0.052718]
[1735663966211,0.052718,95017.0,95016.0,0.052718]
[1735663967214,0.053718,95017.0,95016.0,0.052718]
[1735663967518,0.053718,95017.0,95016.0,0.053718]
[1735663968714,0.053718,95017.0,95016.0,0.001]
[1735663968905,0.07795431,95017.0,95016.0,0.001]
[1735663974613,0.02523631,95017.0,95016.0,0.053718]
[1735663975003,0.001,95017.0,95016.0,0.053718]
[1735663977718,0.001,95017.0,95016.0,0.07757687]
[1735663977920,0.001,95017.0,95006.0,0.052724]
[1735663978219,0.001,95017.0,95004.0,0.00157898]
[1735663978432,0.052722,95009.0,95004.0,0.00157898]
[1735663978610,0.001,95017.0,95016.0,0.052718]
[1735663979216,0.0239452,95035.0,95014.0,1.60006]
[1735663979412,0.3608,95038.0,95037.0,0.052707]
[1735663979612,0.413506,95038.0,95037.0,0.052707]
[1735663980215,0.3608,95038.0,95028.0,0.1943]
[1735663980415,0.052708,95034.0,95033.0,0.052709]
[1735663980615,0.3608,95038.0,95035.0,0.052708]
[1735663980822,0.3628,95038.0,95037.0,0.001]
[1735663981028,0.415506,95038.0,95037.0,0.001]
[1735663981215,0.413506,95038.0,95036.0,0.052707]
[1735663981419,0.417506,95038.0,95036.0,0.052707]
[1735663982224,0.417506,95038.0,95037.0,0.052707]
[1735663982424,0.3648,95038.0,95037.0,0.052707]
[1735663982921,0.003,95038.0,95037.0,0.414507]
[1735663983513,0.001,95038.0,95037.0,0.414507]
[1735663983712,0.002,95038.0,95037.0,0.414507]
[1735663989430,0.054706,95038.0,95037.0,0.3618]
[1735663991929,0.153806,95038.0,95037.0,0.001]
[1735664001032,0.153806,95038.0,95014.0,0.3608]
[1735664001033,0.052719,95015.0,95014.0,0.3608]
[1735664002131,0.052719,95015.0,95014.0,0.3618]
[1735664003126,0.052719,95015.0,95014.0,0.001]
[1735664003644,0.0823056,95015.0,95014.0,0.001]
[1735664003829,0.0823056,95015.0,95014.0,0.00246442]
[1735664004940,0.0823056,95015.0,95014.0,0.00255156]
[1735664009541,0.0823056,95015.0,94994.0,0.00157911]
[1735664009542,0.3903866,95015.0,94994.0,0.00157911]
[1735664009737,0.052729,94998.0,94994.0,0.00157911]
[1735664009939,0.052729,94998.0,94994.0,0.05430911]
[1735664010134,0.05273,94996.0,94994.0,0.05430911]
[1735664010757,0.05273,94995.0,94994.0,0.00157911]
[1735664010931,0.05273,94995.0,94994.0,0.01057911]
[1735664011436,0.05273,94995.0,94994.0,0.00157911]
[1735664011640,0.05273,94995.0,94994.0,0.066731]
[1735664012032,0.05273,94995.0,94994.0,0.005]
[1735664012230,0.05273,94995.0,94994.0,0.014]
[1735664012436,0.05273,94995.0,94994.0,0.009]
[1735664012631,0.05273,94995.0,94994.0,0.014]
[1735664014035,0.05273,94995.0,94994.0,0.066731]
[1735664014539,0.03010209,95002.0,94994.0,0.014]
[1735664014743,0.05273,94995.0,94994.0,0.014]
[1735664016941,0.052728,94999.0,94998.0,0.052728]
[1735664018534,0.052728,94999.0,94998.0,0.055728]
[1735664019027,0.03001346,95004.0,94998.0,0.003]
[1735664019232,0.0967,95020.0,94998.0,0.003]
[1735664019233,0.3608,95025.0,95000.0,0.3608]
[1735664019538,0.0699202,95010.0,95009.0,0.052722]
[1735664019736,0.052718,95016.0,95011.0,0.052721]
[1735664019932,0.052718,95016.0,95013.0,0.05272]
[1735664021028,0.08294739,95016.0,95013.0,0.05272]
[1735664021331,0.03022939,95016.0,95013.0,0.05272]
[1735664021735,0.00457946,95014.0,95013.0,0.05272]
[1735664022938,0.00557946,95014.0,95013.0,0.05272]
[1735664024639,0.00457946,95014.0,95013.0,0.05272]
[1735664025938,0.003,95014.0,95013.0,0.05272]
[1735664026145,0.0699202,95030.0,95013.0,0.05272]
[1735664026441,0.0699202,95030.0,95029.0,0.052711]
[1735664026644,0.41431001,95032.0,95029.0,0.052711]
[1735664026940,0.41351,95032.0,95029.0,0.052711]
[1735664027445,0.39071788,95032.0,95029.0,0.052711]
[1735664027742,0.39071788,95032.0,95031.0,0.05271]
[1735664028248,0.3608,95032.0,95031.0,0.05271]
[1735664028445,0.31433768,95042.0,95041.0,0.052704]
[1735664028943,0.34070618,95042.0,95041.0,0.052704]
[1735664029647,0.34270618,95042.0,95041.0,0.052704]
[1735664029846,0.34270618,95042.0,95041.0,0.053704]
[1735664031741,0.39541018,95042.0,95041.0,0.001]
[1735664033043,0.052709,95032.0,95031.0,0.3608]
[1735664033634,0.3608,95038.0,95012.0,0.0941]
[1735664033635,0.05271,95031.0,95012.0,0.0941]
[1735664033840,0.052717,95019.0,95014.0,0.052719]
[1735664034447,0.3608,95026.0,95012.0,0.4549]
[1735664034747,0.3608,95026.0,95015.0,0.052719]
[1735664034947,0.052717,95018.0,95015.0,0.052719]
[1735664035749,0.3608,95026.0,95015.0,0.052719]
[1735664036047,0.3608,95026.0,95015.0,0.053719]
[1735664036247,0.0699202,95025.0,95015.0,0.053719]
[1735664036752,0.001,95018.0,95015.0,0.053719]
[1735664036946,0.052718,95016.0,95015.0,0.053719]
[1735664038345,0.052717,95019.0,95016.0,0.052718]
[1735664038651,0.052718,95017.0,95012.0,0.4549]
[1735664038852,0.05272,95013.0,95012.0,0.4549]
[1735664039347,0.05272,95013.0,95012.0,0.3608]
[1735664039752,0.052722,95010.0,95009.0,0.00157883]
[1735664041354,0.052724,95005.0,95004.0,0.413525]
[1735664041556,0.052724,95005.0,95004.0,0.3608]
[1735664042141,0.05273,94995.0,94994.0,0.3608]
[1735664044650,0.05273,94995.0,94994.0,0.3708]
[1735664045456,0.05273,94995.0,94994.0,0.423531]
[1735664047348,0.05273,94995.0,94994.0,0.3708]
[1735664047748,0.05273,94995.0,94994.0,0.423531]
[1735664049247,0.05273,94995.0,94994.0,0.3708]
[1735664053857,0.05273,94995.0,94994.0,0.42353]
[1735664054759,0.0699202,95004.0,94994.0,0.42353]
[1735664055262,0.05273,94995.0,94994.0,0.42353]
[1735664056262,0.052728,95000.0,94999.0,0.052726]
[1735664056460,0.36164,95008.0,94994.0,0.3708]
[1735664056656,0.34683384,95020.0,95004.0,0.3608]
[1735664056965,0.052717,95018.0,95017.0,0.052717]
[1735664057161,0.34595383,95020.0,95015.0,0.3608]
[1735664057360,0.34595383,95020.0,95019.0,0.052717]
[1735664058062,0.4209822,95020.0,95019.0,0.052717]
[1735664058265,0.4209822,95020.0,95005.0,0.278]
[1735664058266,0.052718,95017.0,95016.0,0.052718]
[1735664059550,0.001,95017.0,95005.0,0.0942]
[1735664059752,0.05272,95014.0,95010.0,0.052721]
[1735664059955,0.05272,95014.0,95005.0,0.0942]
[1735664060156,0.05272,95014.0,95011.0,0.052721]
[1735664061465,0.052724,95006.0,95005.0,0.001]
[1735664061664,0.0913,95013.0,95007.0,0.052723]
[1735664061869,0.052723,95008.0,95007.0,0.052723]
[1735664062759,0.052726,95002.0,95001.0,0.052726]
[1735664062955,0.413523,95008.0,95007.0,0.001]
[1735664063361,0.052725,95004.0,94992.0,0.052731]
[1735664063566,0.05273,94995.0,94992.0,0.052731]
[1735664063861,0.1398404,95002.0,94992.0,0.052731]
[1735664064072,0.3608,94999.0,94979.0,0.0912]
[1735664064268,0.05273,94994.0,94984.0,0.052736]
[1735664064575,0.0699202,94995.0,94986.0,0.052734]
[1735664064576,0.052734,94989.0,94986.0,0.052734]
[1735664064869,0.052734,94989.0,94979.0,0.0912]
[1735664065070,0.052734,94989.0,94987.0,0.052734]
[1735664065271,0.052734,94989.0,94988.0,0.052734]